Cogmind - Beta 17 @@@ ROGUE MODE // 2026.07.25 @ 21:14:18 Player: Sinthome Result: Destroyed by Y-45 Defender with Heavy Assault Rifle Performance ------------- Evolutions (2) 1000 Regions Visited (4) 800 Robots Destroyed (60) 300 Value Destroyed (1515) 1515 Prototype IDs (5) 100 Alien Tech Used (0) 0 Bonus (7310) 7310 TOTAL SCORE: 11025 Bonus ------- High Alert Combat Kills 150 Follower Combat Kills 33 Prayed to X0-1V1 5000 Major X0-1V1 Interference 2150 Friendly Fire -23 Cogmind --------- Core Integrity 0/360 Matter 300/300 Energy 88/100 System Corruption 2% Temperature Cool (15) Movement Walking (90) Location -8/Materials Parts ------- > --- POWER (1) -------- (None) > --- PROPULSION (4) --- VSS Leg VSS Leg VSS Leg > --- UTILITY (4) ------ Large Storage Unit Melee Analysis Suite X0-1V1's Piety Tracker > --- WEAPON (2) ------- Great Maul > --- INVENTORY (15) --- Light Nuclear Core Armored Huge Wheel Improved Heat Sink Weight Redist. System Improved Terrain Scan Processor Power Shielding Improved Medium Laser Autogun Peak State ------------ > --- POWER ------------ Deuterium Engine > --- PROPULSION ------- Armored Huge Wheel Armored Huge Wheel > --- UTILITY ---------- Cryofiber Web Improved Heat Sink Large Storage Unit X0-1V1's Piety Tracker > --- WEAPON ----------- Improved Medium Laser Heavy Particle Cannon > --- INVENTORY -------- Light Nuclear Core VSS Leg VSS Leg VSS Leg Armored Huge Wheel Improved Heat Sink Weight Redist. System Improved Terrain Scan Processor Melee Analysis Suite Power Shielding Improved Medium Laser Autogun Great Maul [Rating: 49] Favorites ----------- Power Heavy Ion Engine Engine Heavy Ion Engine Power Core Light Nuclear Core Propulsion Improved Aluminum Leg Leg Improved Aluminum Leg Wheel Armored Huge Wheel Flight Unit Improved Flight Unit Utility X0-1V1's Piety Tracker Device X0-1V1's Piety Tracker Storage Medium Storage Unit Processor Transport Network Coupler Protection Medium Armor Plating Weapon Beam Rifle Energy Gun Beam Rifle Energy Cannon Heavy Particle Cannon Ballistic Gun Shotgun Ballistic Cannon Light Cannon Launcher Grenade Launcher Impact Weapon Great Maul Build | -11 -10 -9 -9 -8 ------- Run | Yrd Mat Mat Sto Mat Slots Evolved 4 | . . 2 . 2 Power . | . . . . . Propulsion 2 | . . 1 . 1 Utility 2 | . . 1 . 1 Weapon . | . . . . . Parts Attached 59 | 7 8 9 12 23 Power 10 | 1 2 1 2 4 Engine 8 | 1 2 1 2 2 Core 2 | . . . . 2 Reactor . | . . . . . Propulsion 16 | 2 2 2 3 7 Treads . | . . . . . Leg 9 | 2 2 2 . 3 Wheel 4 | . . . . 4 Hover . | . . . . . Flight 3 | . . . 3 . Utility 17 | 2 2 2 3 8 Device 10 | 1 1 1 1 6 Storage 3 | 1 1 . . 1 Processor 2 | . . . 1 1 Hackware . | . . . . . Protection 2 | . . 1 1 . Artifact . | . . . . . Weapon 16 | 2 2 4 4 4 Energy Gun 7 | 1 1 2 1 2 Energy Cannon 1 | . . . . 1 Ballistic Gun 4 | 1 . 2 1 . Ballistic Cannon 2 | . . . 2 . Launcher 1 | . 1 . . . Special Weapon . | . . . . . Impact Weapon 1 | . . . . 1 Slashing Weapon . | . . . . . Piercing Weapon . | . . . . . Special Melee Weapon . | . . . . . Unidentified Prototypes 4 | . 1 2 . 1 Parts Lost 18 | . . 3 4 11 Power 2 | . . . . 2 Propulsion 7 | . . 2 3 2 Utility 5 | . . . . 5 Weapon 4 | . . 1 1 2 Highest Loss Streak 6 | . . 3 2 6 To Critical Strikes . | . . . . . Average Backups 8 | 4 7 9 9 8 Power . | . 1 1 . 1 Propulsion 2 | 3 2 1 2 2 Utility 3 | . 2 3 3 3 Weapon 2 | . 1 2 2 2 Tool/Special . | . . . . . Unused Backups 23 | . 10 5 4 4 Power 1 | . . 1 . . Propulsion 4 | . 4 . . . Utility 12 | . 4 4 2 2 Weapon 6 | . 2 . 2 2 Tool/Special . | . . . . . Average Slot Usage (%) 91 | . 99 97 93 76 Engine 10 | . 14 11 9 5 Leg 18 | . 28 25 18 4 Wheel 2 | . . . . 12 Flight 5 | . . 5 12 2 Device 15 | . 14 18 13 18 Storage 10 | . 14 11 10 5 Processor 4 | . . . 8 7 Protection 1 | . . 3 . 2 Energy Gun 11 | . 14 13 11 6 Energy Cannon 1 | . . . . 4 Ballistic Gun 3 | . 1 4 5 . Launcher 3 | . 12 3 . . Peak Build Rating 49 | 9 24 32 31 49 Average Rating 27 | 5 13 29 28 40 On Entrance 15 | . 9 24 31 15 Avg Prop Armor Cover (%) 1 | . . 1 1 . Naked Turns . | . . . . . Heaviest Build 48 | 12 22 32 26 48 Greatest Support 62 | 20 26 39 26 62 Greatest Overweight (x) 3 | 3 . . 1 1 Average Overweight (x) . | . . . . . Largest Inventory Capacity 15 | 8 10 10 10 15 Average Capacity 9 | 7 8 10 9 11 Most Carried 15 | 8 9 10 10 15 Average Carried 8 | 4 7 9 9 9 Final Capacity 15 | 8 10 10 5 15 Final Carried 10 | 8 9 10 5 9 Class Distribution -------------------- 97% | Mutant Dominant Class ---------------- Mutant | -10/Materials Mutant | -9/Materials Mutant | -9/Storage Mutant | -8/Materials Resources | -11 -10 -9 -9 -8 ----------- Run | Yrd Mat Mat Sto Mat Matter Collected 1347 | 278 207 231 296 335 Remotely . | . . . . . Salvage Created 2061 | 62 287 374 547 791 Parts 123 | 6 22 29 32 34 Haulers Intercepted 6 | . 1 2 2 1 Recyclers Shooed 5 | 1 . 1 3 . Parts Field Recycled . | . . . . . Retrieved Matter . | . . . . . Parts Self-Destructed . | . . . . . Prevented . | . . . . . Parts Restored . | . . . . . Kills | -11 -10 -9 -9 -8 ------- Run | Yrd Mat Mat Sto Mat Combat Hostiles Destroyed 41 | . 8 9 9 15 Melee 1 | . . . . 1 Guns 20 | . 1 5 8 6 Cannons 8 | . . . 1 7 AOE 11 | . 7 4 . . Classes Destroyed 13 | 2 6 2 . 3 Worker 3 | . 2 . . 1 Builder 1 | . . . . 1 Tunneler 1 | 1 . . . . Hauler 6 | . 1 2 2 1 Recycler 2 | 1 1 . . . Operator 2 | . . 1 1 . Watcher 4 | . 1 1 1 1 Swarmer 12 | . 3 3 3 3 Grunt 14 | . 2 3 1 8 Brawler 1 | . . . . 1 Sentry 10 | . . 3 5 2 Hunter 1 | . . . . 1 Subdweller 3 | . 3 . . . Best Kill Streak 8 | 1 4 6 4 8 Combat Bots Only 6 | . 3 5 3 6 Max Kills in Single Turn 2 | 1 2 2 1 1 Gunslinging . | . . . . . Exploded 2 | . 1 2 . . Melee 1 | . . . . 1 Uniques/NPCs Destroyed . | . . . . . Combat | -11 -10 -9 -9 -8 -------- Run | Yrd Mat Mat Sto Mat Hostile Shots Fired 355 | . 28 51 86 190 Missed 108 | . 10 17 31 50 Hits 247 | . 18 34 55 140 Melee 3 | . . . . 3 Projectile 244 | . 18 34 55 137 Critical Strikes 10 | . 1 3 3 3 Damage Taken 3380 | . 267 553 689 1871 Core 670 | . 78 61 169 362 Absorbed by Shields 42 | . . . . 42 Regen/Repaired (Parts) 22 | . 22 . . . Core Remaining (%) 67 | 100 68 . 33 . Volleys Fired 175 | 13 20 37 52 53 Largest 2 | 1 2 2 2 2 Hottest 131 | 20 86 101 101 131 Shots Fired 306 | 13 37 60 104 92 Gun 240 | 13 21 53 93 60 Cannon 43 | . . . 11 32 Launcher 23 | . 16 7 . . Special . | . . . . . Kinetic 75 | 13 1 14 47 . Thermal 198 | . 20 33 53 92 Explosive 23 | . 16 7 . . Electromagnetic 10 | . . 6 4 . Robot Hit Streak 17 | 7 7 8 15 17 Robot Miss Streak 3 | 1 1 2 3 3 Penetration Max . | . . . . . Secondary Targets 3 | . . 1 1 1 Max Gunslinging Chain 1 | . . 1 1 1 Shots Hit Robots 198 | 10 16 39 61 72 Core Hits 99 | 4 19 24 25 27 Critical Kills 3 | . . . 1 2 Critical Parts Destroyed 1 | . . . . 1 Critical Strikes 15 | . . 1 2 12 Burn 9 | . . 1 . 8 Meltdown 1 | . . . . 1 Destroy 1 | . . . 1 . Blast 1 | . . . 1 . Smash 3 | . . . . 3 Melee Attacks 10 | . . . . 10 Impact 10 | . . . . 10 Slashing . | . . . . . Piercing . | . . . . . Sneak Attacks . | . . . . . Combat Hostiles . | . . . . . Follow-up Attacks . | . . . . . Damage Inflicted 4396 | 91 898 779 935 1693 Guns 2205 | 84 149 396 794 782 Cannons 763 | . . . 138 625 Explosions 1102 | . 749 353 . . Melee 286 | . . . . 286 Ramming 40 | 7 . 30 3 . Kinetic 682 | 84 . 84 514 . Thermal 2238 | . 149 264 418 1407 Explosive 1102 | . 749 353 . . Electromagnetic 48 | . . 48 . . Impact 286 | . . . . 286 Slashing . | . . . . . Piercing . | . . . . . Highest Corruption 9 | . . 1 9 2 Average Corruption 4 | . . 1 6 2 Corruption Purged . | . . . . . Corruption Blocked . | . . . . . Effects 26 | . . 5 19 2 Message Errors 6 | . . . 5 1 Matter Fused 4 | . . 1 3 . Heat Flow Errors 6 | . . . 6 . Energy Discharges 2 | . . 1 1 . Data Loss (minor) 6 | . . 2 3 1 Weapon Failures 2 | . . 1 1 . Overload Shots . | . . . . . Overflow Damage 84 | . 8 . . 76 Projectiles 11 | . . . . 11 Explosions 8 | . 8 . . . Melee 65 | . . . . 65 Knockbacks 3 | . . 1 . 2 Impact 3 | . . 1 . 2 Kinetic . | . . . . . Secondary . | . . . . . Self-Inflicted Damage 142 | . 56 86 . . Shots 5 | . 3 2 . . Rammed . | . . . . . Targets Rammed 6 | 1 . 4 1 . Kicked 6 | 1 . 4 1 . Crushed . | . . . . . Highest Temperature 440 | . 114 178 245 440 Average Temperature 78 | . 42 53 55 132 Received Heat Transfer 1206 | . 60 219 282 645 Effects 4 | . . . . 4 Shutdowns 1 | . . . . 1 Energy Bleed 1 | . . . . 1 Matter Decay 1 | . . . . 1 Short Circuit 1 | . . . . 1 Siege Activations . | . . . . . Martial Activations . | . . . . . Shielding Activations . | . . . . . Robots Disrupted . | . . . . . Combat Hostiles . | . . . . . Robots Corrupted . | . . . . . Combat Hostiles . | . . . . . Parts Fried . | . . . . . Impact Corruptions 3 | . . . . 3 Robots Melted 2 | . . . . 2 Combat Hostiles 1 | . . . . 1 Parts Melted 9 | . . . 1 8 Heat Transferred 5402 | . 407 740 1036 3219 Parts Sabotaged . | . . . . . Parts Stolen . | . . . . . Parts Stripped . | . . . . . Power Chain Reactions . | . . . . . Alert | -11 -10 -9 -9 -8 ------- Run | Yrd Mat Mat Sto Mat Maximum Alert Level 3 | . . 1 1 3 Low Security (%) 60 | 100 100 91 41 6 Level 1 19 | . . 8 58 6 Level 2 17 | . . . . 76 Level 3 2 | . . . . 10 Level 4 . | . . . . . Level 5 . | . . . . . High Security . | . . . . . Max Security . | . . . . . Peak Influence 900 | 5 110 225 327 900 Initial 137 | . . 37 48 137 Average 205 | . 33 147 205 481 Influence Increases 2591 | 10 311 395 732 1143 Destroy 0b10 Robot/C 780 | . 100 200 180 300 Destroy 0b10 Robot/NC 105 | 10 25 20 30 20 Destroy Leader 230 | . 24 66 66 74 Allied During Kill 5 | . . 5 . . Successful Hack 54 | . 5 5 25 19 Disable Machine 15 | . . 15 . . Destroy Structure 99 | . 53 39 3 4 Partial Spotted 45 | . . 15 15 15 Lose Combat Pursuer 390 | . . 30 165 195 Miscellaneous 868 | . 104 . 248 516 Influence Decreases 1691 | 10 223 367 521 570 Entered New Map 309 | . . 51 68 190 Time Decay 1062 | 10 223 246 313 270 Search Patrol Dispatched 100 | . . . 100 . Lost Part 180 | . . 30 40 110 Lost Ally 40 | . . 40 . . Squads Dispatched 10 | . 1 3 2 4 Investigation 2 | . . . 1 1 Extermination . | . . . . . Reinforcement 8 | . 1 3 1 3 Assault . | . . . . . Garrison . | . . . . . Intercept . | . . . . . Searches Triggered 1 | . . . 1 . Construction Impeded . | . . . . . Haulers Reinforced . | . . . . . Active Scanning Responses . | . . . . . Cargo Convoy Interrupts . | . . . . . Stealth | -11 -10 -9 -9 -8 --------- Run | Yrd Mat Mat Sto Mat Distress Signals 5 | . . 2 1 2 Communications Jammed . | . . . . . Distress Signals . | . . . . . Times Spotted 93 | . 9 18 28 38 Peak Tracking Total 10 | . 3 4 10 8 Tactical Retreats 12 | . . 1 4 7 Traps | -11 -10 -9 -9 -8 ------- Run | Yrd Mat Mat Sto Mat Traps Triggered 5 | . . . 5 . Indirectly . | . . . . . Trap Hack Attempts . | . . . . . Triggered . | . . . . . Disarmed . | . . . . . Reprogrammed . | . . . . . Reused . | . . . . . Traps Extracted . | . . . . . Installed . | . . . . . Triggered . | . . . . . Machines | -11 -10 -9 -9 -8 ---------- Run | Yrd Mat Mat Sto Mat Machines Disabled 1 | . . 1 . . Max in Single Turn 1 | . . 1 . . Machines Repaired . | . . . . . Machines Dismantled . | . . . . . Machines Sabotaged . | . . . . . Overloaded Fab Kills . | . . . . . Hacking | -11 -10 -9 -9 -8 --------- Run | Yrd Mat Mat Sto Mat Machines Accessed 16 | . 4 2 7 3 Terminals 13 | . 2 1 7 3 Fabricators . | . . . . . Repair Stations 2 | . 1 1 . . Recycling Units 1 | . 1 . . . Scanalyzers . | . . . . . Garrison Access . | . . . . . Total Hacks 34 | . 6 5 13 10 Successful 17 | . 4 3 5 5 Failed 17 | . 2 2 8 5 Catastrophic 3 | . . 1 2 . Database Lockouts . | . . . . . Manual 13 | . 1 . 6 6 Terminals 27 | . 2 2 13 10 Fabricators . | . . . . . Repair Stations 6 | . 3 3 . . Recycling Units 1 | . 1 . . . Scanalyzers . | . . . . . Garrison Access . | . . . . . Terminal Hacks 8 | . 1 1 4 2 Open Door 2 | . . . 2 . Branch Access Points 2 | . . . 1 1 Transport Status 1 | . . 1 . . Hauler Manifests 2 | . 1 . . 1 Zone Layout 1 | . . . 1 . Fabricator Hacks . | . . . . . Repair Station Hacks 4 | . 2 2 . . Scan Component 3 | . 1 2 . . Repair 1 | . 1 . . . Recycling Unit Hacks 1 | . 1 . . . Retrieve Components 1 | . 1 . . . Scanalyzer . | . . . . . Garrison Access Hacks . | . . . . . Unauthorized Hacks 3 | . . . 1 2 Terminals 3 | . . . 1 2 Assimilate 3 | . . . 1 2 Fabricators . | . . . . . Repair Stations . | . . . . . Recycling Units . | . . . . . Scanalyzers . | . . . . . Garrison Access . | . . . . . Data Cores Recovered . | . . . . . Used . | . . . . . Hacking Detections 9 | . 2 1 4 2 Full Trace Events 3 | . . 1 1 1 Feedback Events 1 | . . 1 . . Corruption 1 | . . 1 . . Feedback Blocked . | . . . . . Robot Schematics Acquired . | . . . . . Robots Built . | . . . . . Authchips . | . . . . . Time . | . . . . . Total Robot Build Rating . | . . . . . Part Schematics Acquired . | . . . . . Parts Built . | . . . . . Authchips . | . . . . . Time . | . . . . . Total Part Build Rating . | . . . . . Part Studies Acquired . | . . . . . Parts Repaired 1 | . 1 . . . Time 26 | . 26 . . . Parts Recycled . | . . . . . Recycled Matter . | . . . . . Retrieved Matter . | . . . . . Retrieved Components 7 | . 7 . . . Parts Scanalyzed . | . . . . . Part Schematics Acquired . | . . . . . Parts Damaged . | . . . . . Bothacking | -11 -10 -9 -9 -8 ------------ Run | Yrd Mat Mat Sto Mat Used RIF Installer . | . . . . . Robots Hacked . | . . . . . Non-combat . | . . . . . Combat . | . . . . . Robot Hacks Applied . | . . . . . Relay Couplers Released . | . . . . . Fabnet Peak Effective % . | . . . . . Robots Rewired . | . . . . . Allies Hacked . | . . . . . Hacks Repelled . | . . . . . Allies | -11 -10 -9 -9 -8 -------- Run | Yrd Mat Mat Sto Mat Total Allies 2 | . . 2 . . Largest Group 2 | . . 2 . . Highest-Rated Group 16 | . . 16 . . Highest-Rated Ally 8 | . . 8 . . Total Orders . | . . . . . Ally Attacks 18 | . . 18 . . Total Damage 165 | . . 165 . . Kills 1 | . . 1 . . Allies Corrupted . | . . . . . Allies Melted . | . . . . . X0-1V1 Amusement Gains 46 | . 16 20 . 10 Good Acts 7 | . . 6 1 . Bad Acts 17 | . 1 5 6 5 Intel | -11 -10 -9 -9 -8 ------- Run | Yrd Mat Mat Sto Mat Active Infowar (turns) 1483 | 63 531 . 548 341 Terrain 594 | 63 531 . . . T.N.C. 889 | . . . 548 341 Robot Analysis Total . | . . . . . Derelict Logs Recovered . | . . . . . Drone Launches . | . . . . . Drone Recoveries . | . . . . . Exploration | -11 -10 -9 -9 -8 ------------- Run | Yrd Mat Mat Sto Mat Turns Passed 2564 | 112 621 534 715 582 Spaces Moved 1614 | 52 286 331 537 408 Core 19 | 19 . . . . Treads . | . . . . . Legs 1054 | 33 286 331 312 92 Wheels 209 | . . . . 209 Hover . | . . . . . Flight 332 | . . . 225 107 Fastest Speed 32 | 50 120 120 32 37 Average Speed 99 | 133 120 120 87 81 Slowest Speed 200 | 200 120 120 190 115 Overloaded Moves . | . . . . . Propulsion Burnouts . | . . . . . Robots Hopped 6 | . . . 6 . Potential Cave-ins . | . . . . . Cave-ins Triggered . | . . . . . Exploration Rate (%) 37 | 3 46 20 77 40 Regions Visited 4 Branch Regions 1 Pre-discovered Areas . | . . . . . Known Exits Taken . | . . . . . Unknown Exits Taken 4 | 1 1 1 1 . Scrap Searched . | . . . . . Spaces Dug . | . . . . . Terrain Destroyed 113 | . 64 45 . 4 Melee . | . . . . . Projectile 4 | . . . . 4 AOE 109 | . 64 45 . . Terrain Rammed . | . . . . . Walls Destroyed . | . . . . . Machines Disabled . | . . . . . Actions | -11 -10 -9 -9 -8 --------- Run | Yrd Mat Mat Sto Mat Total 2239 | 80 533 409 673 544 Wait 287 | . 190 12 65 20 Move 1598 | 51 285 330 524 408 Hop 6 | . . . 6 . Pick Up 48 | 8 12 10 5 13 Fast Attach 16 | 7 1 2 . 6 Attach 23 | . . 4 5 14 Detach 5 | . . . 1 4 Swap 27 | . 8 3 7 9 Drop 37 | . 17 7 6 7 Fire 175 | 13 20 37 52 53 Melee 10 | . . . . 10 Ram . | . . . . . Kick 6 | 1 . 4 1 . Crush . | . . . . . Escape Stasis . | . . . . . Rewire 1 | . . . 1 . Trap . | . . . . . Miscellaneous . | . . . . . Route ------- -11/Scrapyard -10/Materials (discovered 3 exits: *Mat / [*Min] / [*Sub]) -9/Materials -9/Storage (discovered 2 exits: *Mat / Rec) -8/Materials History --------- Turn | Location | Event 19 | -11/Scrapyard | Discovered new exit (range 14) 113 | -11/Scrapyard | Entered Materials 297 | -10/Materials | Repaired Grenade Launcher 318 | -10/Materials | Build established: Mutant 423 | -10/Materials | Discovered new exit (range 8) 518 | -10/Materials | Discovered new exit (range 7) 613 | -10/Materials | Derelicts attacked the area 644 | -10/Materials | Prayed at D.C.S.S. Altar Unit 686 | -10/Materials | Discovered new exit (range 14) 710 | -10/Materials | X0-1V1 added 0b10 threat records associated with you (minor) 734 | -10/Materials | Entered another Materials area 734 | -9/Materials | Evolved 2 slots: Propulsion x1, Utility x1 741 | -9/Materials | Energy generation permanently improved by X0-1V1 (+10; -100 max core) 764 | -9/Materials | Discovered new exit (range 16) 778 | -9/Materials | X0-1V1 sent allied G-34 Mercenary (x2) 928 | -9/Materials | Lost 3 parts (2n1w) 1099 | -9/Materials | X0-1V1 foreshadows a heat wave 1251 | -9/Materials | X0-1V1 announced a LAN party 1268 | -9/Materials | Entered Storage 1302 | -9/Storage | Identified exit to Recycling 1413 | -9/Storage | X0-1V1 added 0b10 threat records associated with you (major) 1668 | -9/Storage | Search patrols dispatched 1821 | -9/Storage | Core integrity fell below 50% 1893 | -9/Storage | X0-1V1 sent hostile B-36 Bruiser (x3) 1909 | -9/Storage | Melee accuracy permanently improved by X0-1V1 (+9%; -90 max core) 1964 | -9/Storage | Discovered new exit (range 17) 1983 | -9/Storage | Entered Materials 1983 | -8/Materials | Evolved 2 slots: Propulsion x1, Utility x1 2020 | -8/Materials | X0-1V1 added 0b10 threat records associated with you (major) 2146 | -8/Materials | X0-1V1 announced a LAN party 2418 | -8/Materials | Core integrity fell below 50% 2462 | -8/Materials | Lost 6 parts (2n2u2w) 2475 | -8/Materials | Core integrity fell below 20% 2502 | -8/Materials | X0-1V1 added 0b10 threat records associated with you (major) 2565 | -8/Materials | Destroyed by Y-45 Defender with Heavy Assault Rifle Last Messages --------------- 02470_ S-10 Pest IFF system glitched. 02470_ G-47 Trooper destroyed. 02474_ M-13 Machinist fits Backup Power I on S-10 Pest. 02474_ S-10 Pest destroyed. 02484_ Acquired 55 matter. 02497_ R-06 Scavenger collects Lgt. Ion Engine. 02500_ R-06 Scavenger collects Wheel. 02501_ O-24 Administrator: "IFF HANDSHAKE FAILED. SECURING TERMINAL." 02502_ X0-1V1: "So many more threat records for the threat god!" 02503_ ALERT: Hostiles spotted, dispatching reinforcements to Terminal M006. 02530_ ALERT: Hostiles spotted, dispatching reinforcements to Terminal M009. 02550_ Cryofiber Web destroyed. 02558_ G-47 Trooper suffers critical hit (Burn). 02560_ Deuterium Engine destroyed. 02562_ G-47 Trooper suffers critical hit (Smash). 02562_ Imp. Heat Sink melted. 02562_ G-47 Trooper destroyed. 02565_ X0-1V1 chuckles heartily! Map ----- +----------------------------------------------------+ | ?????????????????????# ! # + # """ | | ?????????????????????# # #### / """ | | ?????????????????????# ######### # """ | | ?????????????????????# # # # | | ?????????????????????# # !# ####### | | ?????????????????????# # # #?????? | | ?????????????????????? # # #?????? | | ???????????????????????? ??# # #?????? | | ????????????????????????##+##### + #????## | | ????????????????????????# + """ # ###### | | ????????????????????????# #### """"" # ## | | ????????????????????????# #??# """"" # ## T | | ????????????????????????# #??# """"" # #? | | ????????????????????????# #??# """ # #??"""" | | ????????????????????????# #??######### #??"""" | | ????????????????????????# #??????????# #??"""" | | ????????????????????????# #??????????? #? | | ????????????????????????# #??????????? ## | | ????????????????????????# #??????????? ####### | | ????????????????????????# #??????????? ###### | | ????????????????????????# #??????????? | | ????????????????????????# #??????????? | | ????????????????????????# #??????????? | | ????????????????????????#a #??????????? ###### | | ????????????????????????# #????????????????????? | | ????????????????????????#@% #????????????????????? | | ????????????????????????# #????????????????????? | | ????????????????????????# #????????????????????? | | ????????????????????????# #????????????????????? | | ????????????????????????#Y #????????????????????? | | ???????????????????????? ????????????????????? | | ???????????????????????? Y ???????????????????? | | ???????????????????????? ???????????????????? | | ???????????????????????# ??????????????????? | | ???????????????????????# ###?????????????????? | | ???????????????????????## ##???????????????????? | | ????????????????????????# #????????????????????? | | ????????????????????????? #????????????????????? | | ????????????????????????? +????????????????????? | | ????????????????????????? #????????????????????? | | ????????????????????????? ?????????????????????? | | ?????????????????????????????????????????????????? | | ?????????????????????????????????????????????????? | | ?????????????????????????????????????????????????? | | ?????????????????????????????????????????????????? | | ?????????????????????????????????????????????????? | | ?????????????????????????????????????????????????? | | ?????????????????????????????????????????????????? | | ?????????????????????????????????????????????????? | | ?????????????????????????????????????????????????? | +----------------------------------------------------+ Best States ------------- Heat Dissipation 59 Energy Generation 25 Energy Capacity 280 Matter Stores 300 Matter Capacity 300 Sight Range 20 Terrain Scan Range 16 Terrain Scan Density 10 Additional Mass Support 6 Base Temperature (-) 100 Armor Coverage 225 Evasion (%) 63 Melee Accuracy 5 Authchip Count 1 Item Schematics ----------------- None Robot Schematics ------------------ None Fabricated ------------ Nothing Repaired ---------- Grenade Launcher | 63% | -10/Materials Studied --------- None Alien Tech Used ----------------- None Achievements -------------- Suspicious True Hacker Challenges ------------ None Game ------ Seed AntisysSwordProcsplitter Manual? 0 Play Time 01:08:39 Cumulative 46.5 hours Start 2026.07.24 @ 22:01:19 End 2026.07.25 @ 21:14:18 Sessions 3 Manual Loads 0 Difficulty Rogue Special Mode None Game No. 40 Rogue 40 Adventurer 0 Explorer 0 Win Type - Total 0 Types 0/0/0/0/0/0/0/0/0/0 Lore% 17 Gallery% 36 Achievement% 23 Wizard Run 0 Options --------- Layout 0 ASCII 0 Keyboard 0 Movement Numpad Keybinds 0 Fullscreen 1 Font 24/X11 Map View 76x50 Zoom Use 0% Tactical HUD 1 Map Filters NONE Filters NONE Steam 1 RUN: 32ea7acf-136d-4336-a526-94719cef5362